fUST/lending_fUST_20240710
["ID","MTS","AMOUNT","RATE_DAILY","PERIOD"]
[331624588,1720586953143,-229.306813,0.00021096,2]
[331624589,1720586953162,-613.50498407,0.00021096,2]
[331624590,1720586953182,-1000.0,0.00021096,2]
[331624591,1720586953201,-231.40584764,0.00021096,2]
[331624592,1720586953220,-454.8056069,0.00023453,2]
[331624593,1720586953240,-161.0,0.000255,2]
[331624594,1720586953259,-1011.22243673,0.00025501,2]
[331624595,1720586971156,-28988.77756327,0.00025501,2]
[331624596,1720586971176,-320.99319815,0.0002565,2]
[331624597,1720586971197,-161.766509,0.0002575,2]
[331624598,1720586971298,-1506.926484,0.000265,2]
[331624599,1720586971320,-220.38185,0.00027195,2]
[331624600,1720586971342,-320.99319808,0.000284,2]
[331624601,1720586971362,-170.47875529,0.0003,4]
[331624602,1720586971382,-753.06028908,0.0003,2]
[331624603,1720586971403,-471.68236775,0.0003,4]
[331624604,1720586971427,-293.0,0.0003,2]
[331624606,1720586987758,2791.65693636,0.0003,4]
[331624668,1720587041233,-2819.83863628,0.0003,4]
[331624669,1720587041242,-320.99319808,0.0003115,2]
[331624670,1720587041254,-413.0,0.00032,120]
[331624671,1720587041263,-500.38242698,0.00032,30]
[331624672,1720587041273,-220.38185,0.00033295,2]
[331624673,1720587041282,-320.99319808,0.000339,2]
[331624674,1720587041291,-5990.38415938,0.0003399,4]
[331624675,1720587041383,-1975.95,0.0003399,3]
[331624676,1720587041392,-1646.63,0.0003399,3]
[331624677,1720587041401,-195.0,0.00034,2]
[331624678,1720587041411,-350.0,0.00034,120]
[331624679,1720587041419,-38436.7556278,0.00034,120]
[331624706,1720587043666,-5937.55381392,0.00034,120]
[331624751,1720587059821,187.324572,0.00021096,2]
[331624753,1720587116473,1000.0,0.00021096,2]
[331624775,1720587787661,927.28971114,0.00014999,2]
[331624783,1720588040302,-10042.460008,0.000198,2]
[331624788,1720588162126,-2793.83200875,0.000198,2]
[331624789,1720588162146,-500.0,0.0002,2]
[331624790,1720588162165,-2241.20357628,0.0002109,3]
[331624791,1720588162186,-166.609965,0.00021096,2]
[331624792,1720588162206,-4476.05404123,0.00021096,2]
[331624793,1720588165210,-2418.4566693,0.00021096,2]
[331624794,1720588165230,-428.33485551,0.00021096,2]
[331624795,1720588165249,-763.93203298,0.00021096,2]
[331624796,1720588165271,-225.75818488,0.00021096,2]
[331624797,1720588165292,-1000.0,0.00021096,2]
[331624798,1720588165312,-166.666666,0.00021918,2]
[331624799,1720588165331,-676.42562027,0.00023966,2]
[331624800,1720588165349,-602.88179196,0.00023966,2]
[331624801,1720588165369,-154.83806341,0.00023968,2]
[331624802,1720588165387,-348.36389326,0.00023968,2]
[331624803,1720588165406,-215.83191418,0.00024,2]
[331624804,1720588165424,-1094.68927919,0.00024,2]
[331624805,1720588165443,-154.91039696,0.00024,2]
[331624806,1720588165465,-30000.0,0.00025501,2]
[331624807,1720588165485,-442.93184341,0.000264,2]
[331624808,1720588165505,-150.0,0.000265,2]
[331624809,1720588165524,-187.324572,0.00027195,2]
[331624810,1720588165544,-442.93184339,0.00029043,2]
[331624811,1720588165564,-335.55416588,0.000298,2]
[331624812,1720588165583,-310.10819442,0.0003,4]
[331624813,1720588165602,-284.6000077,0.0003,3]
[331624814,1720588165621,-195.0,0.0003,2]
[331624816,1720588226890,211.380398,0.00021096,2]
[331624817,1720588227100,211.380398,0.00027195,2]
[331624978,1720588238881,-173.745992,0.00032962,2]
[331624979,1720588238891,-200.236078,0.00032962,2]
[331624980,1720588238901,-157.107569,0.00032962,2]
[331624981,1720588238911,-211.380398,0.00033295,2]
[331624982,1720588238921,-153.0,0.00033507,2]
[331624983,1720588238931,-153.0,0.00033507,2]
[331624984,1720588238940,-366.6405652,0.00033767,2]
[331624985,1720588238952,-2000.0,0.000339,2]
[331624986,1720588238965,-5292.88975486,0.00033931,2]
[331624987,1720588238976,-172.0,0.0003399,2]
[331624988,1720588238987,-19498.5059234,0.0003399,4]
[331624989,1720588238996,-55624.69055828,0.00034,120]
[331624990,1720588239006,-442.93184339,0.00034329,2]
[331624991,1720588239016,-360.96153227,0.00034336,4]
[331624992,1720588239026,-177.45902154,0.00034418,4]
[331624993,1720588239036,-643.66349447,0.00034458,4]
[331624994,1720588239046,-154.57491897,0.00034458,4]
[331624995,1720588239056,-948.22094155,0.00034463,2]
[331624996,1720588239067,-1406.0,0.00034519,2]
[331624997,1720588239079,-948.22094151,0.00034547,2]
[331624998,1720588239090,-155.58670976,0.0003455,4]
[331624999,1720588239100,-155.43825686,0.00034555,4]
[331625000,1720588239110,-256.84783111,0.0003456,2]
[331625001,1720588239121,-187.02683146,0.0003456,3]
[331625002,1720588239131,-955.01247136,0.0003456,2]
[331625003,1720588239142,-155.3827584,0.00034562,4]
[331625004,1720588239152,-235.67722639,0.00034563,4]
[331625005,1720588239162,-339.4180408,0.00034563,4]
[331625006,1720588239172,-240.78154412,0.00034567,4]
[331625007,1720588239182,-285.58484555,0.00034574,4]
[331625008,1720588239193,-471.68236775,0.00034623,4]
[331625009,1720588239204,-243.48791892,0.0003463,4]
[331625010,1720588239215,-948.22094151,0.00034632,2]
[331625011,1720588239226,-240.00502341,0.00034702,4]
[331625012,1720588239236,-948.22094151,0.00034716,2]
[331625013,1720588239246,-939.78953602,0.0003479,5]
[331625014,1720588239257,-948.22094151,0.000348,2]
[331625015,1720588239267,-1817.14,0.00034848,3]
[331625016,1720588239278,-952.91,0.00034849,3]
[331625017,1720588239288,-36600.77528,0.00034858,4]
[331625018,1720588239298,-300.0,0.00034866,2]
[331625019,1720588239308,-19498.5059234,0.0003488,4]
[331625020,1720588239322,-500.0,0.00034889,7]
[331625021,1720588239332,-500.0,0.00034889,7]
[331625022,1720588239343,-195.63396956,0.00034889,7]
[331625023,1720588239353,-500.0,0.00034889,7]
[331625024,1720588239363,-453.28892836,0.00034889,7]
[331625025,1720588239373,-364.40761785,0.0003489,5]
[331625026,1720588239383,-8386.40403355,0.0003489,5]
[331625027,1720588239393,-360.70657409,0.0003489,4]
[331625028,1720588239403,-5000.0,0.0003489,30]
[331625029,1720588239413,-500.0,0.0003489,4]
[331625030,1720588239423,-195.093654,0.0003489,7]
[331625031,1720588239433,-195.093654,0.0003489,7]
[331625032,1720588239443,-190.590792,0.0003489,7]
[331625033,1720588239452,-190.590792,0.0003489,7]
[331625034,1720588239462,-521.261945,0.0003489,7]
[331625035,1720588239472,-521.261945,0.0003489,7]
[331625036,1720588239482,-387.399569,0.0003489,7]
[331625037,1720588239493,-151.0,0.0003489,7]
[331625038,1720588239503,-387.399569,0.0003489,7]
[331625039,1720588239514,-151.0,0.0003489,7]
[331625040,1720588239524,-194985.059234,0.0003489,4]
[331625041,1720588239535,-639.20118668,0.00034899,7]
[331625042,1720588239544,-500.0,0.00034899,7]
[331625043,1720588239555,-500.0,0.00034899,7]
[331625044,1720588239564,-427.8578885,0.00034899,7]
[331625045,1720588239577,-18388.66133764,0.000349,2]
[331625054,1720588240841,-135332.32152413,0.000349,2]
[331625085,1720588247234,-643.66349447,0.00034422,4]
[331625086,1720588247244,-2544.63758986,0.000349,2]
[331625225,1720589237163,-189.3258365,0.00021096,2]
[331625226,1720589237183,-166.666666,0.00024404,2]
[331625227,1720589237204,-591.8958297,0.00025007,2]
[331625228,1720589237224,-595.16187369,0.00025501,2]
[331625230,1720589352088,-763.93203298,0.00025501,2]
[331625231,1720589352108,-575.49788648,0.00025501,2]
[331625232,1720589352128,-51546.85055384,0.00025501,2]
[331625233,1720589352148,-301.52359463,0.00025925,2]
[331625234,1720589352167,-161.766509,0.00026025,2]
[331625235,1720589352186,-166.666666,0.00027731,2]
[331625236,1720589352206,-301.52359463,0.00028636,2]
[331625237,1720589352225,-268.65851187,0.00029772,2]
[331625238,1720589352244,-175.41119278,0.00029793,2]
[331625239,1720589352265,-643.66349447,0.0003,4]
[331625240,1720589352285,-471.68236775,0.0003,4]
[331625241,1720589352305,-154.57491897,0.0003,4]
[331625242,1720589352326,-390.0,0.0003,2]
[331625243,1720589352347,-170.47875529,0.0003,4]
[331625244,1720589352368,-2864.19134322,0.0003091,4]
[331625245,1720589352392,251.58970002,0.00027194,2]
[331625246,1720589377418,303.32193746,0.00025501,2]
[331625247,1720589384179,97.30628832,0.00025501,2]
[331625346,1720589440027,-902.69371168,0.00025501,2]
[331625347,1720589440037,-189.26423783,0.00025501,2]
[331625348,1720589440047,-262.46417256,0.00025501,2]
[331625349,1720589440057,-9821.70710526,0.00029979,2]
[331625350,1720589440067,-503.90846633,0.00030755,2]
[331625351,1720589440077,-360.96153227,0.0003091,4]
[331625352,1720589440087,-471.68236775,0.0003091,4]
[331625353,1720589440098,-154.57491897,0.0003091,4]
[331625354,1720589440111,-471.68236775,0.0003091,4]
[331625355,1720589440121,-643.66349447,0.0003091,4]
[331625356,1720589440132,-154.57491897,0.0003091,4]
[331625358,1720589440142,-160.0,0.00032614,3]
[331625360,1720589440153,-300.0,0.00033,30]
[331625362,1720589440163,-160.0,0.00033371,4]
[331625364,1720589440174,-1757.82046343,0.00034,120]
[331625365,1720589440184,-160.0,0.00034127,5]
[331625366,1720589440195,-5292.88975486,0.00034557,2]
[331625367,1720589440204,-366.6405652,0.00034577,2]
[331625368,1720589440214,-28010.75512216,0.0003467,2]
[331625369,1720589440225,-210.0,0.0003479,2]
[331625371,1720589440235,-973.47,0.0003479,3]
[331625372,1720589440245,-1352.03,0.0003479,3]
[331625374,1720589440255,-1126.7,0.0003479,3]
[331625375,1720589440265,-15598.8047387,0.0003479,4]
[331625376,1720589440276,-65926.03358594,0.000348,5]
[331625407,1720589443186,-161.09491032,0.00030229,4]
[331625419,1720589447199,-74.58231607,0.00030229,4]
[331625420,1720589447209,-196.59770693,0.000348,5]
[331625421,1720589499718,187.433585,0.00021096,2]
[331625457,1720590451162,-202.76464,0.00021096,2]
[331625458,1720590451183,-1000.0,0.00021096,2]
[331625459,1720590451207,-225.75818488,0.00021096,2]
[331625460,1720590451228,-262.46417256,0.00021096,2]
[331625461,1720590451248,-3018.56392905,0.00022941,2]
[331625466,1720590555098,-1403.62828437,0.00022941,2]
[331625467,1720590563080,-5399.51489184,0.00022941,2]
[331625468,1720590563101,-297.1361607,0.00023779,2]
[331625469,1720590563122,-161.766509,0.00024163,2]
[331625470,1720590563142,-723.07912117,0.00024481,2]
[331625471,1720590563164,-391.34933692,0.0002547,2]
[331625472,1720590563184,-28010.75512216,0.00025501,2]
[331625473,1720590563204,-189.26423783,0.0002557,2]
[331625474,1720590563224,-1000.0,0.0002557,2]
[331625475,1720590563245,-202.76464,0.00027195,2]
[331625476,1720590563264,-1000.0,0.00027807,2]
[331625477,1720590563287,-268.65851187,0.00028,2]
[331625478,1720590563308,-391.34933689,0.00028246,2]
[331625479,1720590563331,-849.45020334,0.00029,2]
[331625480,1720590563354,-643.66349447,0.0003,4]
[331625481,1720590563375,-293.0,0.0003,2]
[331625482,1720590563396,-170.47875529,0.0003,4]
[331625483,1720590565681,1000.0,0.00022941,2]
[331625484,1720590608589,268.65851187,0.00028,2]
[331625485,1720590614179,1000.0,0.00027807,2]
[331625516,1720590636274,643.66349447,0.0003,4]
[331625583,1720590641772,-151.0,0.00031042,4]
[331625584,1720590641781,-151.0,0.00031751,4]
[331625585,1720590641791,-500.38242698,0.00032,30]
[331625586,1720590641800,-151.0,0.00032459,4]
[331625588,1720590641810,-151.0,0.00033167,5]
[331625589,1720590641819,-202.76464,0.00033295,2]
[331625590,1720590641828,-151.0,0.00033875,5]
[331625591,1720590641840,-1757.82046343,0.00034,120]
[331625592,1720590641851,-153.0,0.00034458,2]
[331625593,1720590641860,-153.0,0.00034463,2]
[331625594,1720590641869,-160.0,0.00034506,3]
[331625595,1720590641879,-600.0,0.0003456,2]
[331625596,1720590641888,-151.0,0.00034584,6]
[331625597,1720590641897,-888.14140594,0.00034588,4]
[331625598,1720590641908,-366.6405652,0.00034589,2]
[331625599,1720590641917,-223.57819493,0.00034626,30]
[331625600,1720590641927,-210.0,0.0003468,2]
[331625601,1720590641936,-2601.46,0.0003468,3]
[331625602,1720590641945,-2474.63,0.0003468,3]
[331625603,1720590641955,-2062.19,0.0003468,3]
[331625604,1720590641964,-20526.0508377,0.0003468,4]
[331625605,1720590641973,-130498.39820719,0.0003469,2]
[331625606,1720590641983,-5292.88975486,0.00034729,2]
[331625607,1720590641992,-4193.20201677,0.0003479,5]
[331625608,1720590642001,-30789.0762566,0.0003479,4]
[331625609,1720590642010,-911.01904462,0.000348,5]
[331625610,1720590642020,-2000.0,0.000348,2]
[331625611,1720590642030,-406.57143958,0.000348,3]
[331625612,1720590642039,-5611.49557264,0.000348,4]
[331625613,1720590642048,-20485.94730078,0.000348,5]
[331625632,1720590654191,219.59465006,0.00027807,2]
[331625661,1720591654123,-183.369037,0.00021096,2]
[331625662,1720591654145,-1356.926484,0.000265,2]
[331625663,1720591654166,-183.369037,0.00027195,2]
[331625664,1720591654187,-780.40534994,0.00027807,2]
[331625665,1720591654208,-231.40584764,0.00027807,2]
[331625666,1720591654229,-268.65851187,0.00028,2]
[331625667,1720591654249,-880.25528941,0.00029823,2]
[331625668,1720591654268,-643.66349447,0.0003,4]
[331625669,1720591654288,-500.0,0.0003,2]
[331625670,1720591654308,-161.766509,0.00030446,2]
[331625671,1720591654329,-500.0,0.00031,2]
[331625672,1720591654350,-154.58373183,0.00032,2]
[331625681,1720591764176,-2400.55189648,0.000299,2]
[331625682,1720591764198,-213.0,0.0003,120]
[331625683,1720591764219,-310.10819442,0.0003,4]
[331625684,1720591769146,3227.46161028,0.00029903,2]
[331625711,1720591832364,-647.95119025,0.00029879,2]
[331625834,1720591838980,-15099.18097849,0.00029879,2]
[331625866,1720591840519,-515.71991458,0.00029879,2]
[331625868,1720591840529,-161.0,0.00029902,2]
[331625870,1720591840538,-335.55416588,0.00029903,2]
[331625872,1720591840547,-503.90846633,0.0003184,2]
[331625874,1720591840557,-345.41626817,0.00032,2]
[331625876,1720591840566,-200.0,0.00032,120]
[331625878,1720591840575,-406.57143958,0.00032,3]
[331625880,1720591840584,-8016.42224663,0.00032,4]
[331625882,1720591840595,-1000.0,0.00032,4]
[331625884,1720591840604,-500.0,0.00033,2]
[331625886,1720591840614,-302.42936046,0.00033294,4]
[331625888,1720591840623,-183.369037,0.00033295,2]
[331625890,1720591840632,-643.66349447,0.00033597,4]
[331625892,1720591840641,-195.0,0.00034,2]
[331625894,1720591840651,-1757.82046343,0.00034,120]
[331625896,1720591840660,-8562.01667988,0.00034,5]
[331625898,1720591840670,-500.0,0.00034,2]
[331625900,1720591840679,-350.0,0.00034,120]
[331625902,1720591840689,-153.0,0.00034473,2]
[331625904,1720591840698,-2000.0,0.000345,2]
[331625906,1720591840707,-5292.88975486,0.00034537,2]
[331625908,1720591840717,-1406.0,0.00034563,2]
[331625910,1720591840726,-471.68236775,0.00034642,4]
[331625912,1720591840735,-235.67722639,0.0003468,4]
[331625914,1720591840744,-151.0,0.00034682,6]
[331625916,1720591840754,-366.6405652,0.00034687,2]
[331625918,1720591840763,-1718.49,0.0003479,3]
[331625920,1720591840773,-1432.08,0.0003479,3]
[331625922,1720591840782,-10528.8695694,0.0003479,4]
[331625924,1720591840791,-1000.0,0.000348,3]
[331625926,1720591840801,-83739.86995297,0.000348,5]
[331626496,1720591846649,-643.66349447,0.00033294,4]
[331626497,1720591846659,-563.0398591,0.000348,5]
[331629361,1720592384821,161.95,0.00015501,2]
[331629364,1720592761546,151.0,0.000155,2]
[331629366,1720592831593,-229.306813,0.0002,2]
[331629370,1720592953830,-64.15185915,0.0002,2]
[331629371,1720592953911,-231.977037,0.00021096,2]
[331629372,1720592953933,-429.85673375,0.00024242,2]
[331629374,1720592973292,-450.39855566,0.00024242,2]
[331629375,1720592973316,-150.0,0.000265,2]
[331629376,1720592973337,-231.977037,0.00027195,2]
[331629377,1720592973359,-295.4510489,0.00029921,2]
[331629378,1720592973380,-2689.5437614,0.00030127,2]
[331629381,1720592990888,1000.0,0.00024242,2]
[331629384,1720593021039,412.15915847,0.00029384,2]
[331629410,1720593033371,1000.0,0.00029384,2]
[331629507,1720593040908,-500.0,0.00031,2]
[331629508,1720593040918,-500.0,0.00032,2]
[331629509,1720593040928,-160.0,0.00032519,3]
[331629510,1720593040937,-1981.441716,0.00033,30]
[331629511,1720593040948,-500.0,0.00033,2]
[331629512,1720593040958,-160.0,0.00033182,4]
[331629513,1720593040969,-231.977037,0.00033295,2]
[331629514,1720593040979,-160.0,0.00033844,5]
[331629515,1720593040988,-500.0,0.00034,2]
[331629516,1720593040998,-1559.86063891,0.000342,30]
[331629517,1720593041092,-366.6405652,0.0003425,2]
[331629519,1720593041102,-262.616,0.00034271,2]
[331629521,1720593041113,-5292.88975486,0.00034322,2]
[331629523,1720593041122,-15392.99,0.00034389,120]
[331629525,1720593041132,-471.68236775,0.00034462,4]
[331629527,1720593041142,-471.68236775,0.00034467,4]
[331629529,1720593041152,-160.0,0.00034506,6]
[331629531,1720593041162,-600.0,0.0003456,2]
[331629533,1720593041171,-2131.27459352,0.0003456,4]
[331629535,1720593041181,-154.57491897,0.00034563,4]
[331629537,1720593041190,-154.57491897,0.00034567,4]
[331629539,1720593041200,-1249.15972303,0.00034574,5]
[331629541,1720593041210,-197.30576581,0.0003463,2]
[331629543,1720593041220,-235.67722639,0.0003463,4]
[331629545,1720593041229,-276.64310743,0.0003463,4]
[331629547,1720593041240,-283.37160967,0.00034642,4]
[331629549,1720593041250,-360.96153227,0.00034762,4]
[331629551,1720593041259,-961.55,0.0003479,3]
[331629553,1720593041269,-1691.43,0.0003479,3]
[331629555,1720593041286,-1409.52,0.0003479,3]
[331629558,1720593041297,-21070.1553542,0.0003479,4]
[331629559,1720593041308,-4193.20201677,0.000348,5]
[331629561,1720593041318,-284.6000077,0.000348,3]
[331629563,1720593041329,-5611.49557264,0.000348,4]
[331629565,1720593041338,-5000.0,0.000348,30]
[331629567,1720593041349,-2000.0,0.000348,2]
[331629569,1720593041358,-151.0,0.000348,7]
[331629571,1720593041368,-21731.03272753,0.000348,5]
[331630634,1720593073525,206.552161,0.00021096,2]
[331630635,1720593073829,206.552161,0.00027195,2]
[331630657,1720594047116,-151.91306337,0.00021096,2]
[331630659,1720594145191,-57.10788363,0.00021096,2]
[331630660,1720594145219,-2131.27459352,0.00025501,2]
[331630661,1720594145240,-1403.62828437,0.0002557,2]
[331630662,1720594145261,-150.0,0.000265,2]
[331630663,1720594145282,-1000.0,0.00027195,2]
[331630664,1720594145304,-209.020947,0.00027195,2]
[331630665,1720594145324,-197.30576581,0.00027399,2]
[331630666,1720594145345,-276.64310743,0.00029793,2]
[331630667,1720594145366,-753.06028908,0.0003,2]
[331630668,1720594145386,-283.37160967,0.0003,4]
[331630669,1720594189463,1000.0,0.0002557,2]
[331630673,1720594232829,-161.766509,0.00031046,2]
[331630674,1720594232838,-320.24227583,0.00032,2]
[331631034,1720594237069,284.6000077,0.0003,3]
[331631298,1720594239949,-179.75772417,0.00032,2]
[331631300,1720594239959,-5611.49557264,0.00032963,4]
[331631302,1720594239969,-500.0,0.00033,2]
[331631304,1720594239978,-209.020947,0.00033295,2]
[331631306,1720594239988,-160.0,0.00033623,3]
[331631308,1720594239998,-1249.15972303,0.00034,5]
[331631310,1720594240008,-500.0,0.00034,2]
[331631312,1720594240018,-500.0,0.00034191,2]
[331631314,1720594240028,-500.0,0.00034191,2]
[331631316,1720594240038,-500.0,0.00034191,2]
[331631318,1720594240047,-489.61326615,0.00034191,2]
[331631320,1720594240056,-600.0,0.0003456,2]
[331631322,1720594240066,-5292.88975486,0.00034577,2]
[331631324,1720594240075,-360.96153227,0.00034588,4]
[331631337,1720594240198,-235.67722639,0.00034592,4]
[331631339,1720594240210,-154.57491897,0.00034602,4]
[331631341,1720594240220,-366.6405652,0.00034611,2]
[331631343,1720594240229,-471.68236775,0.00034623,4]
[331631345,1720594240239,-208.83853644,0.00034634,4]
[331631347,1720594240248,-503.53125308,0.0003469,2]
[331631349,1720594240259,-2000.0,0.000347,2]
[331631351,1720594240269,-1282.7343476,0.00034728,12]
[331631353,1720594240279,-1318.86,0.0003479,3]
[331631355,1720594240288,-2276.74,0.0003479,3]
[331631357,1720594240298,-1897.29,0.0003479,3]
[331631359,1720594240307,-10535.0776771,0.0003479,4]
[331631361,1720594240317,-4193.20201677,0.000348,5]
[331631362,1720594240326,-306.208099,0.000348,17]
[331631364,1720594240335,-55515.35399395,0.000348,5]
[331631964,1720594245914,333.67288233,0.00025183,2]
[331633531,1720594267043,284.6000077,0.0003,3]
[331633847,1720594338955,861.03942476,0.0003,4]
[331633862,1720595246154,-185.998303,0.00021096,2]
[331633863,1720595246176,-209.020966,0.00021096,2]
[331633864,1720595246197,-185.998303,0.00027195,2]
[331633865,1720595246218,-138.96057524,0.0003,4]
[331633866,1720595246239,-980.5858035,0.0003,4]
[331633873,1720595345139,-5505.20654968,0.00029979,2]
[331633874,1720595345161,-4630.90976914,0.0003,4]
[331633875,1720595345181,-284.6000077,0.0003,3]
[331633876,1720595345201,-303.32193746,0.0003,4]
[331633877,1720595347528,1000.0,0.0003,4]
[331633881,1720595432722,-179.75772417,0.00032,2]
[331633882,1720595432733,-164.0,0.00032,2]
[331633883,1720595432742,-300.0,0.00032093,2]
[331633884,1720595432751,-160.0,0.00032519,3]
[331633885,1720595432760,-500.0,0.00033,2]
[331633886,1720595432770,-160.0,0.00033182,4]
[331633887,1720595432780,-185.998303,0.00033295,2]
[331633888,1720595432790,-160.0,0.00033844,5]
[331633889,1720595432799,-528.2224456,0.000339,2]
[331633890,1720595432808,-6030.22152723,0.00034,30]
[331634115,1720595440162,-100.07629044,0.00034,30]
[331634117,1720595440172,-38436.7556278,0.00034,120]
[331634120,1720595440181,-500.0,0.00034,2]
[331634122,1720595440191,-153.0,0.00034137,2]
[331634124,1720595440200,-153.0,0.00034137,2]
[331634126,1720595440210,-153.0,0.00034137,2]
[331634128,1720595440219,-153.0,0.00034137,2]
[331634129,1720595440229,-153.0,0.00034137,2]
[331634130,1720595440238,-153.0,0.00034137,2]
[331634131,1720595440247,-153.0,0.00034137,2]
[331634132,1720595440256,-153.0,0.00034137,2]
[331634133,1720595440265,-355.4967339,0.00034137,2]
[331634134,1720595440274,-153.0,0.00034137,2]
[331634135,1720595440284,-5292.88975486,0.00034278,2]
[331634136,1720595440296,-1425.289,0.0003431,2]
[331634137,1720595440307,-366.6405652,0.00034311,2]
[331634138,1720595440318,-160.0,0.00034506,6]
[331634139,1720595440329,-600.0,0.0003456,2]
[331634140,1720595440338,-153.0,0.00034603,2]
[331634141,1720595440348,-289.4876,0.00034608,30]
[331634142,1720595440358,-454.8056069,0.00034642,4]
[331634143,1720595440435,-394.36284654,0.00034669,4]
[331634144,1720595440463,-300.0,0.00034677,2]
[331634145,1720595440473,-1182.68464987,0.0003468,4]
[331634146,1720595440482,-2000.0,0.000347,2]
[331634147,1720595440491,-1000.0,0.00034741,2]
[331634148,1720595440501,-643.66349447,0.00034762,4]
[331634149,1720595440511,-235.51631079,0.00034771,2]
[331634150,1720595440523,-2453.65,0.0003478,3]
[331634151,1720595440539,-2944.38,0.0003479,3]
[331634152,1720595440553,-2044.7,0.0003479,3]
[331634153,1720595440565,-31605.2330313,0.0003479,4]
[331634154,1720595440585,-317.668835,0.0003479,7]
[331634155,1720595440595,-317.668835,0.0003479,7]
[331634156,1720595440605,-528.805444,0.0003479,7]
[331634157,1720595440614,-528.805444,0.0003479,7]
[331634158,1720595440625,-151.0,0.0003479,7]
[331634159,1720595440634,-307.875743,0.0003479,7]
[331634160,1720595440644,-307.875743,0.0003479,7]
[331634161,1720595440655,-911.01904462,0.000348,5]
[331634162,1720595440665,-4193.20201677,0.000348,5]
[331634163,1720595440676,-5000.0,0.000348,17]
[331634164,1720595440686,-160.437585,0.000348,7]
[331634165,1720595440695,-160.358734,0.000348,7]
[331634166,1720595440704,-306.208099,0.000348,17]
[331634167,1720595440714,-151.0,0.000348,7]
[331634168,1720595440723,-151.0,0.000348,7]
[331634169,1720595440732,-494.15192,0.000348,2]
[331634170,1720595440742,-151.0,0.000348,7]
[331634171,1720595440751,-494.15192,0.000348,2]
[331634172,1720595440760,-966.55631564,0.000348,2]
[331634204,1720595452692,1643.21242101,0.0003,4]
[331634240,1720596451636,-158.098557,0.00021096,2]
[331634241,1720596451659,-71.208256,0.00026,3]
[331634242,1720596573356,-928.791744,0.00026,3]
[331634243,1720596573378,-158.098557,0.00027195,2]
[331634244,1720596573399,-1000.0,0.00029,29]
[331634245,1720596573420,-2446.00131275,0.0003,4]
[331634276,1720596633505,-3165.49425989,0.0003,4]
[331634278,1720596633515,-284.6000077,0.0003,3]
[331634280,1720596633527,-1000.0,0.0003,4]
[331634282,1720596633537,-1468.33386659,0.00031121,2]
[331634330,1720596639037,-1221.20989481,0.00031121,2]
[331634332,1720596639047,-158.098557,0.00033295,2]
[331634333,1720596639058,-654.58373183,0.00034,4]
[331634335,1720596639068,-75.85008604,0.00034,34]
[331634566,1720596642504,-4924.14991396,0.00034,34]
[331634568,1720596642514,-151.0,0.00034141,5]
[331634570,1720596642524,-153.0,0.00034458,2]
[331634572,1720596642534,-153.0,0.00034458,2]
[331634574,1720596642544,-153.0,0.00034458,2]
[331634576,1720596642553,-153.0,0.00034458,2]
[331634578,1720596642563,-153.0,0.00034458,2]
[331634580,1720596642573,-306.0,0.00034458,2]
[331634582,1720596642584,-3115.36066484,0.00034467,60]
[331634584,1720596642594,-600.0,0.0003456,2]
[331634587,1720596642604,-2878.93215316,0.0003456,2]
[331634589,1720596642613,-154.65471672,0.00034562,4]
[331634590,1720596642628,-360.96153227,0.00034563,4]
[331634593,1720596642637,-462.1946399,0.00034572,2]
[331634595,1720596642649,-235.67722639,0.0003458,4]
[331634597,1720596642659,-471.68236775,0.00034588,4]
[331634599,1720596642668,-366.6405652,0.00034591,2]
[331634601,1720596642678,-289.4876,0.00034607,30]
[331634603,1720596642689,-1182.68464987,0.00034623,4]